{"text_format":"1","workbook":"xlsx","n_sheets":1,"sheets":["Order Form"],"not_rendered":{"charts":0,"images":1,"macros":1,"external_links":0,"defined_names":1,"comments":0,"pivot_tables":0},"unopened":[],"bounds":{"document_bytes":16777216,"sheet_cells":100000,"rows_first":2000,"rows_last":500,"rows_between":2000,"halvings":0,"cell_chars":16384,"cell_head_chars":4096},"cells_cut":0,"cells_raw":0,"read":"whole","date_system":"1900"}

{"sheet":"Order Form","index":0,"n_rows":62,"n_cols":7,"rows_kept":62,"cut":false,"hidden":false,"merged":[[56,1,56,5],[57,1,57,5],[43,1,43,5],[49,1,49,4],[50,1,50,2],[51,3,51,4],[51,1,51,2],[52,1,52,2],[52,3,52,5],[53,1,53,4],[55,1,55,5],[13,1,13,5],[14,1,14,5],[23,1,23,5],[34,1,34,5],[25,1,25,5],[5,1,5,2],[6,1,7,2],[8,1,8,2],[9,1,9,2],[10,1,10,2]]}
[]
[]
[null,"Order Form CA"]
[]
[]
[null,"School Name:",null,null,"Date:"]
[null,"Ship/Bill Address:",null,null,"PO Number:"]
[null,null,null,null,"Terms:","NET 30 DAYS"]
[null,"Att:",null,null,"Tax ID No.:"]
[null,"Tel:",null,null,"Date Required:"]
[null,"Email:",null,null,"Order Number:","- for office use only -"]
[]
[null,"Qty","Item","Products","Unit Cost","Total"," "]
[null,"REMOTE LEARNING"]
[null,"Virtual Build Teacher's Base Kit"]
[null,null,"VBBLR","Lil’Rockit Shape",178.95,{"$f":"E16*B16","v":0}]
[null,null,"VBBSD","Street Deck Shape",206.95,0]
[null,null,"VBBOS","Old School Shape",230.39,0]
[null,null,"VBBPT","Pintail Shape",240.95,0]
[null,null,"VBBRR","Replay Shape",208.9,0]
[null,null,"VBBBR","Bombora Shape",246.39,0]
[null,null,"VBBMS","Multiboard Street Deck Shape",247.89,0]
[null,null,"VBBML","Multiboard Longboard Shape",334.39,0]
[null,"Teacher Training"]
[null,null,"VBBTT","30 Minute Online Session with Roarockit",100,{"$f":"E25*B25","v":0}]
[null,"Virtual Build Student Kit (choose quantity based on number of students)"]
[null,null,"VBKLR","Lil’Rockit Shape",130.94999999999999,{"$f":"E27*B27","v":0}]
[null,null,"VBKSD","Street Deck Shape",153.94999999999999,0]
[null,null,"VBKOS","Old School Shape",160.94999999999999,0]
[null,null,"VBKPT","Pintail Shape",160.94999999999999,0]
[null,null,"VBKRR","Replay Shape",156.94999999999999,0]
[null,null,"VBKBR","Bombora Shape",170.95,0]
[null,null,"VBKMS","Multiboard Street Deck Shape",183.95,0]
[null,null,"VBKML","Multiboard Longboard Shape",245.95,0]
[null,"Grip Tape Add-On"]
[null,null,"GRP24","Lil'Rockit 24\" Length",5,{"$f":"E36*B36","v":0}]
[null,null,"GRP34","Street Deck 34\" Length",8,0]
[null,null,"GRPOS","Old School 34x11\" Length",10,0]
[null,null,"GRP41","Pintail 41\" Length",10,0]
[null,null,"GRPHR","Replay 30\" Length",9,0]
[null,null,"GRPBR","Bombora 38\" Length",10,0]
[null,null,"GRPOS","Multiboard Street Deck 34x11\" Length",10,0]
[null,null,"GRP43","Multiboard Longboard 43x11\" Length",12,0]
[null,"Other"]
[null,null,null,null,null,{"$f":"E45*B45","v":0}]
[null,null,null,null,null,0]
[null,null,null,null,null,0]
[null,null,null,null,null,0]
[]
[null,"Total Materials",null,null,null,{"$f":"SUM(F16:F48)","v":0}]
[null,"Taxes",null,"(Canadian orders only, adjust for province)",null,{"$f":"F50*E51","v":0}]
[null,"Shipping",null,"(Call or email for estimate)"]
[null,"Order Comments"]
[null,"TOTAL",null,null,null,{"$f":"SUM(F50:F52)","v":0}]
[]
[null,"All costs are in CAD / Prices Subject to Change / Business-Tax Number 892937939"]
[null,"We accept signed Purchase Orders from schools, email or fax to: orders@roarockit.com / Terms are NET 30 Days"]
[null,"©Roarockit Skateboard Company / Sept 2020 V1"]
[]
[null,"ROAROCKIT SKATEBOARD COMPANY",null,null,null,"1-888-857-7790"]
[null,"131 Sunrise Avenue, Unit 3",null,null,null,"Tel: 416-422-5487 Fax: 416-422-1172"]
[null,"Toronto ON M4A 1B2 CANADA",null,null,null,"orders@roarockit.com"]